bitfinex-derivatives/quotes_BNBF0:USTF0_20250908
["timestamp","ask_amount","ask_price","bid_price","bid_amount"]
[1757301357235,1.52531437,881.45,879.61,1.234]
[1757301357830,1.52531437,881.43,879.61,1.234]
[1757301358329,1.52531437,881.44,879.61,1.234]
[1757301358929,1.52531437,881.35,879.61,1.234]
[1757301359230,1.52531437,881.36,879.61,1.234]
[1757301359929,1.52531437,881.29,879.61,1.234]
[1757301360332,1.00922477,881.13,879.61,1.234]
[1757301361638,1.00922477,881.14,879.61,1.234]
[1757301363040,1.00922477,881.14,879.6,0.19732925]
[1757301363340,1.00922477,881.22,879.6,0.19732925]
[1757301365337,1.00922477,881.22,879.61,1.186]
[1757301365637,1.00922477,881.21,879.61,1.186]
[1757301365938,1.52531437,881.4,879.61,1.186]
[1757301365939,1.00922477,881.23,879.61,1.186]
[1757301367043,1.00922477,881.39,879.61,1.186]
[1757301368346,1.52531437,881.65,879.61,1.186]
[1757301368347,1.00922477,881.4,879.61,1.186]
[1757301369846,1.00922477,881.59,879.61,1.186]
[1757301373145,1.00922477,881.58,879.61,1.186]
[1757301374341,1.00922477,881.57,879.61,1.186]
[1757301375246,1.00922477,881.56,879.61,1.186]
[1757301376844,1.00922477,881.42,879.61,1.186]
[1757301378448,1.00922477,881.39,879.61,1.186]
[1757301378848,1.00922477,881.4,879.61,1.186]
[1757301379049,1.00922477,881.39,879.61,1.186]
[1757301379344,1.00922477,881.44,879.61,1.186]
[1757301379744,1.00922477,881.3,879.61,1.186]
[1757301380146,1.00922477,881.29,879.61,1.186]
[1757301381051,1.00922477,881.21,879.61,1.186]
[1757301381753,1.00922477,881.22,879.61,1.186]
[1757301381953,1.00922477,881.21,879.61,1.186]
[1757301382153,2.54877251,882.15,879.61,1.186]
[1757301382154,1.00922477,881.22,879.61,1.186]
[1757301382355,1.00922477,881.21,879.61,1.186]
[1757301384053,1.00922477,881.22,879.61,1.186]
[1757301384252,1.00922477,881.21,879.61,1.186]
[1757301385355,1.00922477,881.2,879.61,1.186]
[1757301386053,1.00922477,881.21,879.61,1.186]
[1757301386252,1.00922477,881.22,879.61,1.186]
[1757301387354,1.00922477,881.21,879.61,1.186]
[1757301388258,1.00922477,881.2,879.61,1.186]
[1757301388959,1.00922477,881.53,879.61,1.186]
[1757301389259,1.00922477,881.85,879.61,1.186]
[1757301389558,1.00922477,881.81,879.61,1.186]
[1757301389755,1.00922477,881.83,879.61,1.186]
[1757301391360,1.00922477,881.82,879.61,1.186]
[1757301392360,0.19723419,882.46,879.61,1.186]
[1757301392361,1.00922477,881.81,879.61,1.186]
[1757301392859,1.00922477,881.7,879.61,1.186]
[1757301393062,1.00922477,881.73,879.61,1.186]
[1757301393264,1.00922477,881.72,879.61,1.186]
[1757301393464,1.00922477,881.68,879.61,1.186]
[1757301394163,1.00922477,881.67,879.61,1.186]
[1757301394363,1.00922477,881.66,879.61,1.186]
[1757301395264,1.00922477,881.65,879.61,2.20080322]
[1757301395462,1.00922477,881.65,879.61,1.186]
[1757301396367,1.00922477,881.63,879.62,1.01480322]
[1757301397469,1.00922477,881.62,879.63,1.01480322]
[1757301397665,1.00922477,881.58,879.78,1.01480322]
[1757301397863,1.00922477,881.54,879.82,1.01480322]
[1757301398267,1.00922477,881.54,879.83,1.01480322]
[1757301398463,1.00922477,881.5,879.85,1.01480322]
[1757301399465,1.00922477,881.78,879.91,1.01480322]
[1757301399766,1.00922477,881.72,879.85,1.01480322]
[1757301400669,1.00922477,881.71,879.84,1.01480322]
[1757301400865,1.00922477,881.69,879.86,1.01480322]
[1757301401368,1.00922477,881.7,879.87,1.01480322]
[1757301401769,1.00922477,881.7,879.61,1.186]
[1757301401770,1.00922477,881.7,879.86,1.01480322]
[1757301402269,1.52531437,882.0,879.61,1.186]
[1757301402270,1.00922477,881.69,879.87,1.01480322]
[1757301402470,1.00922477,881.7,879.86,1.01480322]
[1757301403269,1.00922477,881.71,879.86,1.01480322]
[1757301403969,1.00922477,881.68,879.88,1.01480322]
[1757301404267,1.00922477,881.69,879.87,1.01480322]
[1757301404471,1.00922477,881.68,879.88,1.01480322]
[1757301404669,1.00922477,881.68,879.89,1.01480322]
[1757301405368,1.00922477,881.65,879.92,1.01480322]
[1757301405572,1.00922477,881.6,879.95,1.01480322]
[1757301405973,1.00922477,881.5,880.04,1.01480322]
[1757301406370,1.00922477,881.39,880.12,1.01480322]
[1757301407071,1.00922477,881.4,880.11,1.01480322]
[1757301407272,1.00922477,881.41,880.1,1.01480322]
[1757301408273,1.00922477,881.43,880.1,1.01480322]
[1757301408470,1.00922477,881.42,880.11,1.01480322]
[1757301409272,1.00922477,881.42,880.1,1.01480322]
[1757301409770,1.00922477,881.6,880.29,1.01480322]
[1757301409970,1.00922477,881.66,880.33,1.01480322]
[1757301410470,1.00922477,881.66,880.31,1.01480322]
[1757301411274,1.00922477,881.67,880.3,1.01480322]
[1757301411570,1.00922477,881.7,880.28,1.01480322]
[1757301412271,1.00922477,881.7,880.27,1.01480322]
[1757301413273,1.00922477,881.71,880.26,1.01480322]
[1757301413677,1.00922477,881.71,880.07,1.53588082]
[1757301413678,1.00922477,881.71,880.25,1.01480322]
[1757301414272,1.00922477,881.71,880.24,1.01480322]
[1757301415674,1.00922477,881.73,880.23,1.01480322]
[1757301415973,1.00922477,881.72,880.23,1.01480322]
[1757301416377,1.00922477,881.72,880.22,1.01480322]
[1757301416677,1.00922477,881.75,880.2,1.01480322]
[1757301416872,1.00922477,881.75,880.21,1.01480322]
[1757301417378,1.00922477,881.75,880.2,1.01480322]
[1757301418077,1.00922477,881.74,880.2,1.01480322]
[1757301418378,1.00922477,881.75,880.2,1.01480322]
[1757301419279,1.00922477,881.75,880.19,1.01480322]
[1757301419679,1.00922477,881.74,880.2,1.01480322]
[1757301419883,1.00922477,881.57,880.04,1.01480322]
[1757301421178,1.00922477,881.62,880.04,1.01480322]
[1757301421380,1.00922477,881.61,880.05,1.01480322]
[1757301421584,1.00922477,881.62,880.05,1.01480322]
[1757301422284,1.00922477,881.63,880.05,1.01480322]
[1757301424886,1.00922477,881.64,880.03,1.01480322]
[1757301425383,1.00922477,881.65,880.03,1.01480322]
[1757301425584,1.00922477,881.64,880.04,1.01480322]
[1757301426380,1.00922477,881.64,879.93,1.208]
[1757301426381,1.00922477,881.62,880.05,1.01480322]
[1757301426983,1.00922477,881.61,880.06,1.01480322]
[1757301427182,1.00922477,881.59,880.03,1.01480322]
[1757301427383,1.00922477,881.59,880.01,1.01480322]
[1757301427684,1.00922477,881.53,879.95,1.01480322]
[1757301427887,1.00922477,881.55,879.93,2.22280322]
[1757301428086,1.00922477,881.52,879.95,1.01480322]
[1757301428286,1.00922477,881.5,879.93,1.208]
[1757301428483,1.00922477,881.49,879.93,1.208]
[1757301429092,1.00922477,881.39,879.93,1.208]
[1757301429489,1.00922477,881.38,879.93,1.208]
[1757301429788,1.00922477,881.36,879.95,1.01480322]
[1757301429988,1.00922477,881.35,879.94,1.01480322]
[1757301430284,1.00922477,881.35,879.93,1.208]
[1757301430285,1.00922477,881.34,879.95,1.01480322]
[1757301430489,1.00922477,881.35,879.95,1.01480322]
[1757301430685,1.00922477,881.47,879.93,1.208]
[1757301430885,1.00922477,881.36,879.93,1.208]
[1757301431290,1.00922477,881.29,879.93,1.208]
[1757301432388,1.00922477,881.26,879.93,1.208]
[1757301432690,1.00922477,881.29,879.93,1.208]
[1757301434493,1.00922477,881.34,879.93,1.208]
[1757301434796,1.00922477,881.35,879.93,1.208]
[1757301434991,1.00922477,881.36,879.93,1.208]
[1757301436492,1.00922477,881.35,879.93,1.208]
[1757301437991,1.00922477,881.36,879.93,1.208]
[1757301439293,2.54877251,882.41,879.93,1.208]
[1757301439294,1.00922477,881.35,879.93,1.208]
[1757301439495,1.00922477,881.32,879.93,1.208]
[1757301439893,1.00922477,881.37,879.93,1.208]
[1757301440797,1.00922477,881.37,879.77,1.01480322]
[1757301441198,1.00922477,881.52,879.67,1.01480322]
[1757301441692,1.00922477,881.52,879.68,1.01480322]
[1757301441896,1.00922477,881.53,879.68,1.01480322]
[1757301442497,1.00922477,881.52,879.69,1.01480322]
[1757301443098,1.00922477,881.85,879.68,1.01480322]
[1757301443598,1.00922477,881.87,879.7,1.01480322]
[1757301444293,1.00922477,881.86,879.71,2.38680322]
[1757301444595,1.00922477,881.87,879.72,1.01480322]
[1757301445198,1.00922477,881.81,879.77,1.01480322]
[1757301445494,1.00922477,881.85,879.82,1.01480322]
[1757301445693,1.00922477,881.82,879.84,1.01480322]
[1757301446297,1.00922477,881.82,879.85,1.01480322]
[1757301447402,1.00922477,881.82,879.86,1.01480322]
[1757301448296,1.00922477,881.81,879.87,1.01480322]
[1757301448601,1.00922477,881.7,879.95,1.01480322]
[1757301448803,1.00922477,881.78,880.03,1.01480322]
[1757301449301,1.00922477,881.74,880.18,1.01480322]
[1757301449803,1.00922477,881.7,880.15,1.01480322]
[1757301453498,0.1971448,882.86,880.23,1.01480322]
[1757301453499,1.00922477,881.62,880.23,1.01480322]
[1757301453702,1.00922477,881.61,880.22,1.01480322]
[1757301454002,1.00922477,881.59,880.21,1.01480322]
[1757301455104,1.00922477,881.57,880.19,1.01480322]
[1757301455307,1.00922477,881.56,880.18,1.01480322]
[1757301455704,1.00922477,881.55,880.17,1.01480322]
[1757301456105,1.00922477,881.51,880.2,1.01480322]
[1757301456502,1.00922477,881.51,880.21,1.01480322]
[1757301457205,1.00922477,881.57,880.11,1.01480322]
[1757301457402,1.00922477,881.49,880.03,1.01480322]
[1757301457901,1.00922477,881.48,880.04,1.01480322]
[1757301458605,1.00922477,881.49,880.03,1.01480322]
[1757301458906,1.00922477,881.36,880.13,1.01480322]
[1757301459304,1.00922477,881.36,880.14,1.01480322]
[1757301459704,1.00922477,881.37,880.14,1.01480322]
[1757301460007,1.00922477,881.46,880.23,1.01480322]
[1757301461604,1.00922477,881.49,880.21,1.01480322]
[1757301462304,1.00922477,881.52,880.17,1.01480322]
[1757301462909,1.00922477,881.51,880.18,1.01480322]
[1757301463108,2.54877251,882.47,879.71,1.372]
[1757301463109,1.00922477,881.53,880.17,1.01480322]
[1757301465610,1.00922477,881.52,880.17,1.01480322]
[1757301465806,1.00922477,881.55,880.15,1.01480322]
[1757301466108,1.00922477,881.56,880.16,1.01480322]
[1757301466610,1.00922477,881.55,880.16,1.01480322]
[1757301468607,1.00922477,881.55,880.15,1.01480322]
[1757301468807,1.00922477,881.54,880.15,1.01480322]
[1757301469309,1.00922477,881.61,880.1,1.01480322]
[1757301469609,1.00922477,881.61,880.11,1.01480322]
[1757301469808,1.00922477,881.48,879.98,1.01480322]
[1757301472012,1.00922477,881.47,880.0,1.01480322]
[1757301472412,1.00922477,881.46,880.0,1.01480322]
[1757301473013,1.00922477,881.46,880.01,1.01480322]
[1757301473413,1.00922477,881.46,880.02,1.01480322]
[1757301475814,1.00922477,881.44,880.04,1.01480322]
[1757301476207,1.00922477,881.43,880.04,1.01480322]
[1757301478414,1.00922477,881.43,880.05,1.01480322]
[1757301479212,1.00922477,881.34,880.12,1.01480322]
[1757301479514,1.00922477,881.33,880.12,1.01480322]
[1757301479814,1.00922477,881.36,880.14,1.01480322]
[1757301480413,1.00922477,881.33,880.16,1.01480322]
[1757301481014,1.00922477,881.36,880.14,1.01480322]
[1757301481616,1.00922477,881.35,880.14,1.01480322]
[1757301482318,1.00922477,881.35,880.15,1.01480322]
[1757301484719,1.00922477,881.34,880.15,1.01480322]
[1757301485119,1.00922477,881.33,880.16,1.01480322]
[1757301485521,1.00922477,881.33,880.17,1.01480322]
[1757301486418,1.00922477,881.32,880.17,1.01480322]
[1757301487420,1.00922477,881.32,880.18,1.01480322]
[1757301487921,1.00922477,881.31,880.18,1.01480322]
[1757301488420,0.85866997,881.31,880.18,1.01480322]
[1757301488618,1.52531437,881.46,880.17,1.01480322]
[1757301488825,1.52531437,881.6,880.19,1.377]
[1757301489118,1.52531437,881.59,880.19,1.377]
[1757301489522,1.52531437,881.62,880.19,1.377]
[1757301489724,1.52531437,881.63,880.19,1.377]
[1757301490019,1.52531437,881.6,880.19,1.377]
[1757301490523,1.52531437,881.44,880.19,1.377]
[1757301491425,1.52531437,881.45,880.19,1.377]
[1757301491625,1.52531437,881.42,880.19,1.377]
[1757301492124,1.52531437,881.29,880.19,1.377]
[1757301492323,1.52531437,881.3,880.19,1.377]
[1757301492522,1.52531437,881.29,880.19,1.377]
[1757301492824,1.52531437,881.16,880.19,1.377]
[1757301493322,1.52531437,880.94,880.19,1.377]
[1757301494326,1.30212476,880.96,880.19,1.377]
[1757301494727,2.54877251,881.57,880.19,1.377]
[1757301495727,2.54877251,881.59,880.19,1.377]
[1757301496831,2.54877251,881.61,880.19,1.377]
[1757301497232,2.54877251,881.58,880.19,1.377]
[1757301497728,2.54877251,881.59,880.19,1.377]
[1757301498233,3.56828151,881.89,880.19,1.377]
[1757301498931,2.54877251,881.86,880.19,1.377]
[1757301499230,3.56828151,882.16,880.19,1.377]
[1757301499231,2.54877251,881.72,880.19,1.377]
[1757301499832,2.54877251,881.74,880.19,1.377]
[1757301500331,2.54877251,881.85,880.19,1.377]
[1757301500929,2.54877251,882.05,880.19,1.377]
[1757301501429,2.54877251,881.99,880.19,1.377]
[1757301502430,2.54877251,882.01,880.19,1.377]
[1757301503238,1.13309358,882.0,880.19,1.377]
[1757301503437,1.13309358,881.99,880.19,1.377]
[1757301503634,1.13309358,881.98,880.19,1.377]
[1757301503834,2.54877251,882.02,880.19,1.377]
[1757301504039,3.6818754,882.01,880.19,1.377]
[1757301504240,1.13310289,882.0,880.19,1.377]
[1757301504438,1.13310289,881.99,880.19,1.377]
[1757301504639,1.13310289,881.98,880.19,1.377]
[1757301504837,1.13310289,881.97,880.19,1.377]
[1757301505041,1.13310289,881.96,880.19,1.377]
[1757301505337,1.13310369,881.95,880.19,1.377]
[1757301505538,2.54877251,882.06,880.19,1.377]
[1757301505737,1.13309426,882.05,880.19,1.377]
[1757301505939,1.13309426,882.04,880.19,1.377]
[1757301506139,1.13309426,882.03,880.19,1.377]
[1757301506339,1.13309426,882.02,880.19,1.377]
[1757301506540,2.54877251,882.0,880.19,1.377]
[1757301506740,1.13309426,881.99,880.19,1.377]
[1757301506939,1.13309426,881.98,880.19,1.377]
[1757301507141,2.54877251,881.84,880.19,1.377]
[1757301507541,2.54877251,881.86,880.19,1.377]
[1757301508641,2.54877251,881.87,880.19,1.377]
[1757301509145,2.54877251,881.86,880.19,1.377]
[1757301509645,2.54877251,881.94,880.19,1.377]
[1757301509846,1.1330929,881.93,880.19,1.377]
[1757301510047,1.1330929,881.92,880.19,1.377]
[1757301510346,2.54877251,881.59,880.19,1.377]
[1757301510849,2.54877251,881.36,880.19,1.377]
[1757301511348,2.54877251,881.35,880.19,1.377]
[1757301512243,2.54877251,881.33,880.19,1.377]
[1757301512748,2.54877251,881.35,880.19,1.377]
[1757301513444,2.54877251,881.37,880.19,1.377]
[1757301513946,2.54877251,881.43,880.19,1.377]
[1757301514345,1.50661511,880.67,880.19,1.377]
[1757301515244,1.50661511,880.68,880.19,1.377]
[1757301515548,0.1971448,882.86,880.19,1.377]
[1757301515549,1.50661511,880.69,880.19,1.377]
[1757301516150,1.50661511,880.68,880.19,1.377]
[1757301516446,1.50661511,880.69,880.19,1.377]
[1757301516850,1.50661511,880.7,880.19,1.377]
[1757301517351,1.50661511,880.71,880.19,1.377]
[1757301518450,1.00373967,880.51,880.19,1.377]
[1757301519549,1.00373967,880.49,880.19,1.377]
[1757301520053,1.00373967,880.61,880.19,1.377]
[1757301520254,1.00373967,880.6,880.19,1.377]
[1757301520453,1.00373967,880.73,880.19,1.377]
[1757301520856,1.00373967,880.73,879.86,0.19734995]
[1757301521852,1.00373967,880.72,879.86,0.19734995]
[1757301522456,1.00373967,880.73,879.86,0.19734995]
[1757301523059,1.00373967,880.72,879.86,0.19734995]
[1757301523355,1.00373967,880.72,879.87,1.359]
[1757301523758,1.00373967,880.71,879.87,1.359]
[1757301524155,1.00373967,880.72,879.87,1.359]
[1757301525156,1.00373967,880.73,879.87,1.359]
[1757301525962,2.54877251,881.87,879.87,1.359]
[1757301525963,1.00373967,880.74,879.87,1.359]
[1757301526161,1.00373967,880.73,879.87,1.359]
[1757301527465,1.00373967,880.68,879.87,1.359]
[1757301527663,1.00373967,880.64,879.87,1.359]
[1757301528262,1.00373967,880.61,879.87,1.359]
[1757301529363,1.00373967,880.6,879.87,1.359]
[1757301529665,2.54877251,881.56,879.87,1.359]
[1757301529666,1.00373967,880.61,879.87,1.359]
[1757301529865,1.00373967,880.66,879.87,1.359]
[1757301530260,1.00373967,880.67,879.87,1.359]
[1757301530465,1.00373967,880.66,879.87,1.359]
[1757301531065,1.00373967,880.64,879.87,1.359]
[1757301531270,1.00373967,880.62,879.87,1.359]
[1757301531468,1.00373967,880.63,879.87,1.359]
[1757301531768,1.00373967,880.52,879.87,1.359]
[1757301532371,1.00373967,880.51,879.87,1.359]
[1757301532667,1.00373967,880.52,879.87,1.359]
[1757301533370,1.00373967,880.51,879.87,1.359]
[1757301534370,1.00373967,880.5,879.87,1.359]
[1757301535370,1.00373967,880.49,879.87,1.359]
[1757301535567,1.00373967,880.5,879.87,1.359]
[1757301535768,1.00373967,880.49,879.87,1.359]
[1757301536473,1.00373967,880.48,879.87,1.359]
[1757301536672,1.00373967,880.52,879.87,1.359]
[1757301537372,1.00373967,880.51,879.87,1.359]
[1757301538369,1.00373967,880.5,879.87,1.359]
[1757301538574,1.00373967,880.62,879.87,1.359]
[1757301539372,1.00373967,880.6,879.87,1.359]
[1757301539672,1.00373967,880.61,879.87,1.359]
[1757301539870,1.00373967,880.65,879.87,1.359]
[1757301540071,1.00373967,880.66,879.87,1.359]
[1757301541373,1.00373967,880.65,879.87,1.359]
[1757301541669,1.00373967,880.64,879.87,1.359]
[1757301542370,1.00373967,880.63,879.87,1.359]
[1757301543271,1.00373967,880.62,879.87,1.359]
[1757301544378,1.00373967,880.6,879.87,1.359]
[1757301544879,1.00373967,880.61,879.87,1.359]
[1757301545280,1.00373967,880.6,879.87,1.359]
[1757301545576,1.00373967,880.57,879.87,1.359]
[1757301546379,1.00373967,880.55,879.87,1.359]
[1757301546578,1.00373967,880.54,879.87,1.359]
[1757301546982,1.00373967,880.55,879.87,1.359]
[1757301547480,1.00373967,880.52,879.87,1.359]
[1757301548381,1.00373967,880.42,879.87,1.359]
[1757301549483,2.54877251,881.32,879.87,1.359]
[1757301549484,1.00373967,880.4,879.87,1.359]
[1757301549791,1.00373967,880.52,879.87,1.359]
[1757301550382,1.00373967,880.5,879.87,1.359]
[1757301551390,1.00373967,880.56,879.87,1.359]
[1757301552391,1.00373967,880.54,879.87,1.359]
[1757301553488,1.00373967,880.53,879.87,1.359]
[1757301554191,1.00373967,880.57,879.87,1.359]
[1757301554489,1.00373967,880.54,879.87,1.359]
[1757301555394,1.00373967,880.51,879.87,1.359]
[1757301556393,1.00373967,880.48,879.87,1.359]
[1757301556793,1.00373967,880.47,879.87,1.359]
[1757301557494,1.00373967,880.43,879.87,1.359]
[1757301557694,1.00373967,880.41,879.87,1.359]
[1757301558396,1.00373967,880.35,879.87,1.359]
[1757301558897,1.00373967,880.37,879.87,1.359]
[1757301559998,1.00373967,880.21,879.87,1.359]
[1757301560495,1.00373967,880.2,879.87,1.359]
[1757301560798,1.00373967,880.21,879.87,1.359]
[1757301561197,1.00373967,880.17,879.87,1.359]
[1757301562297,1.00373967,880.17,879.86,0.19734995]
[1757301563801,1.00373967,880.15,879.86,0.19734995]
[1757301564097,0.86310126,880.12,879.86,0.19734995]
[1757301565704,1.50661511,880.34,879.86,0.19734995]
[1757301567003,1.50661511,880.33,879.86,0.19734995]
[1757301567903,1.50661511,880.34,879.86,0.19734995]
[1757301568801,1.50661511,880.3,879.86,0.19734995]
[1757301569601,1.50661511,880.27,879.86,0.19734995]
[1757301569801,2.54877251,880.99,879.86,0.19734995]
[1757301569802,1.50661511,880.25,879.86,0.19734995]
[1757301571302,1.50661511,880.26,879.86,0.19734995]
[1757301573309,1.50661511,880.25,879.86,0.19734995]
[1757301574310,1.50661511,881.12,879.86,0.19734995]
[1757301574510,3.56828151,881.31,879.86,0.19734995]
[1757301574511,1.50661511,881.17,879.86,0.19734995]
[1757301575308,1.50661511,880.82,879.86,0.19734995]
[1757301575510,1.50661511,880.87,879.86,0.19734995]
[1757301576309,1.50661511,880.91,879.86,0.19734995]
[1757301577213,1.50661511,880.93,879.86,0.19734995]
[1757301578313,1.50661511,880.95,879.86,0.19734995]
[1757301578610,1.50661511,880.9,879.86,0.19734995]
[1757301579310,1.50661511,880.92,879.86,0.19734995]
[1757301579814,1.50661511,880.88,879.86,0.19734995]
[1757301580108,3.56828151,882.29,879.86,0.19734995]
[1757301580109,1.50661511,880.89,879.86,0.19734995]
[1757301581114,1.50661511,880.9,879.86,0.19734995]
[1757301581314,1.50661511,880.91,879.86,0.19734995]
[1757301582514,1.50661511,880.92,879.86,0.19734995]
[1757301583415,1.50661511,880.93,879.86,0.19734995]
[1757301584411,1.50661511,880.94,879.86,0.19734995]
[1757301585213,1.50661511,880.67,879.86,0.19734995]
[1757301585811,1.50661511,880.69,879.86,0.19734995]
[1757301586315,1.50661511,880.7,879.86,0.19734995]
[1757301587414,1.50661511,880.71,879.86,0.19734995]
[1757301588014,1.50661511,880.7,879.86,0.19734995]
[1757301588216,1.50661511,880.68,879.86,0.19734995]
[1757301588912,3.56828151,881.67,879.86,0.19734995]
[1757301588913,1.50661511,880.69,879.86,0.19734995]
[1757301589719,1.50661511,880.78,879.86,0.19734995]
[1757301589916,1.50661511,880.77,879.86,0.19734995]
[1757301590219,1.50661511,880.78,879.86,0.19734995]
[1757301590418,1.50661511,880.79,879.86,0.19734995]
[1757301591819,1.50661511,880.8,879.86,0.19734995]
[1757301592423,1.50661511,880.81,879.86,0.19734995]
[1757301594125,1.01372665,880.62,879.86,0.19734995]
[1757301594625,1.01372665,880.63,879.86,0.19734995]
[1757301597028,1.01372665,880.62,879.86,0.19734995]
[1757301597326,1.01372665,880.63,879.86,0.19734995]
[1757301599625,1.01372665,880.6,879.86,0.19734995]
[1757301600026,1.01372665,880.83,879.86,0.19734995]
[1757301600231,1.01372665,880.82,879.86,0.19734995]
[1757301601234,1.01372665,880.81,879.86,0.19734995]
[1757301601534,1.01372665,880.82,879.86,0.19734995]
[1757301601732,1.01372665,880.81,879.86,0.19734995]
[1757301602233,2.54877251,881.62,879.86,0.19734995]
[1757301602234,1.01372665,880.77,879.86,0.19734995]
[1757301604335,1.01372665,880.78,879.86,0.19734995]
[1757301605736,1.01372665,880.77,879.86,0.19734995]
[1757301606338,1.01372665,880.78,879.86,0.19734995]
[1757301606634,1.01372665,880.89,879.86,0.19734995]
[1757301607941,1.01372665,880.9,879.86,0.19734995]
[1757301608640,1.01372665,880.92,879.86,0.19734995]
[1757301608941,1.01372665,880.94,879.86,0.19734995]
[1757301610040,1.01372665,880.72,879.86,0.19734995]
[1757301612440,1.01372665,880.73,879.86,0.19734995]
[1757301612741,1.01372665,880.65,879.86,0.19734995]
[1757301615243,1.01372665,880.64,879.86,0.19734995]
[1757301616541,1.01372665,880.65,879.86,0.19734995]
[1757301617545,1.01372665,880.63,879.86,0.19734995]
[1757301618442,1.01372665,880.62,879.86,0.19734995]
[1757301619444,1.01372665,880.66,879.86,0.19734995]
[1757301619644,1.01372665,880.58,879.86,0.19734995]
[1757301621247,1.50661511,880.8,879.86,0.19734995]
[1757301621248,1.01372665,880.57,879.86,0.19734995]
[1757301624647,1.01372665,880.6,879.86,0.19734995]
[1757301625145,1.01372665,880.59,879.86,0.19734995]
[1757301626052,1.01372665,880.42,879.86,0.19734995]
[1757301626347,1.01372665,880.39,879.86,0.19734995]
[1757301626648,1.01372665,880.38,879.86,0.19734995]
[1757301626852,1.01372665,880.43,879.86,0.19734995]
[1757301627352,1.01372665,880.48,879.86,0.19734995]
[1757301628051,1.01372665,880.49,879.86,0.19734995]
[1757301628351,1.01372665,880.48,879.86,0.19734995]
[1757301629152,1.01372665,880.49,879.86,0.19734995]
[1757301629353,1.01372665,880.48,879.86,0.19734995]
[1757301629955,1.01372665,880.46,879.86,0.19734995]
[1757301630153,1.01372665,880.47,879.86,0.19734995]
[1757301630353,1.01372665,880.46,879.86,0.19734995]
[1757301631054,1.01372665,880.75,879.86,0.19734995]
[1757301631355,1.01372665,880.81,879.86,0.19734995]
[1757301631554,1.01372665,880.79,879.86,0.19734995]
[1757301632052,0.19734995,881.66,879.86,0.19734995]
[1757301632053,1.01372665,880.58,879.86,0.19734995]
[1757301632254,1.01372665,880.37,879.86,0.19734995]
[1757301632752,1.01372665,880.3,879.86,0.19734995]
[1757301632958,1.01372665,880.23,879.86,0.19734995]
[1757301633158,1.01372665,880.24,879.86,0.19734995]
[1757301633354,1.01372665,880.23,879.86,0.19734995]
[1757301633755,1.01372665,880.24,879.86,0.19734995]
[1757301634359,1.01372665,880.19,879.86,0.19734995]
[1757301634857,1.01372665,880.21,879.86,0.19734995]
[1757301635057,1.01372665,880.22,879.86,0.19734995]
[1757301635456,1.01372665,880.14,879.86,0.19734995]
[1757301635754,1.01372665,880.17,879.86,0.19734995]
[1757301636157,1.01372665,880.2,879.86,0.19734995]
[1757301637161,1.01372665,880.21,879.86,0.19734995]
[1757301638162,1.01372665,880.22,879.86,0.19734995]
[1757301639061,1.01372665,880.62,879.86,0.19734995]
[1757301639262,1.01372665,880.66,879.86,0.19734995]
[1757301639757,1.01372665,880.68,879.86,0.19734995]
[1757301639962,1.01372665,880.88,879.86,0.19734995]
[1757301641264,1.01372665,880.92,879.86,0.19734995]
[1757301642064,1.01372665,880.93,879.86,0.19734995]
[1757301645767,1.01372665,880.71,879.86,0.19734995]
[1757301646466,1.01372665,880.67,879.86,0.19734995]
[1757301649070,1.01372665,880.55,879.86,0.19734995]
[1757301649270,1.01372665,880.56,879.86,0.19734995]
[1757301649466,1.01372665,880.54,879.86,0.19734995]
[1757301649964,1.01372665,880.25,879.86,0.19734995]
[1757301650168,1.01372665,880.26,879.86,0.19734995]
[1757301650965,1.01372665,880.25,879.86,0.19734995]
[1757301652068,1.01372665,880.27,879.86,0.19734995]
[1757301652368,1.01372665,880.24,879.86,0.19734995]
[1757301652772,1.01372665,880.25,879.86,0.19734995]
[1757301653873,1.01372665,880.21,879.86,0.19734995]
[1757301656572,1.01372665,880.19,879.86,0.19734995]
[1757301656775,2.54877251,881.22,879.86,0.19734995]
[1757301656776,1.01372665,880.18,879.86,0.19734995]
[1757301656974,1.01372665,880.45,879.86,0.19734995]
[1757301657174,1.01372665,880.51,879.86,0.19734995]
[1757301659276,1.01372665,880.5,879.86,0.19734995]
[1757301659982,1.01372665,880.56,879.86,0.19734995]
[1757301660382,1.01372665,880.61,879.86,0.19734995]
[1757301661279,1.01372665,880.6,879.86,0.19734995]
[1757301664287,1.01372665,880.59,879.86,0.19734995]
[1757301665387,1.01372665,880.58,879.86,0.19734995]